fUSD/lending_fUSD_20240619
["ID","MTS","AMOUNT","RATE_DAILY","PERIOD"]
[329904039,1718812244491,-527.0,0.00013698,2]
[329904040,1718812244500,-162.99510184,0.00013698,2]
[329904041,1718812244509,-500.0,0.00013698,2]
[329904042,1718812244518,-500.0,0.00013698,2]
[329904043,1718812244530,-634.26,0.00013698,2]
[329904044,1718812244539,-712.21,0.00013698,2]
[329904045,1718812244551,-515.41,0.00013698,2]
[329904046,1718812244561,-671.54,0.00013698,2]
[329904047,1718812244570,-500.0,0.00013698,2]
[329904048,1718812244579,-500.0,0.00013698,2]
[329904049,1718812244589,-644.48,0.00013698,2]
[329904050,1718812244601,-500.0,0.00013698,2]
[329904051,1718812244611,-500.0,0.00013698,2]
[329904052,1718812244620,-500.0,0.00013698,2]
[329904053,1718812244630,-500.0,0.00013698,2]
[329904054,1718812244639,-599.2,0.00013698,2]
[329904055,1718812244649,-706.1,0.00013698,2]
[329904056,1718812244659,-521.58,0.00013698,2]
[329904057,1718812244670,-956.81,0.00013698,2]
[329904058,1718812244680,-500.0,0.00013698,2]
[329904059,1718812244690,-500.0,0.00013698,2]
[329904060,1718812244699,-598.86,0.00013698,2]
[329904061,1718812244708,-500.0,0.00013698,2]
[329904062,1718812244718,-524.66,0.00013698,2]
[329904063,1718812244728,-438.59478447,0.00013698,2]
[329904064,1718812244737,-500.0,0.00013698,2]
[329904065,1718812244746,-584.18,0.00013698,2]
[329904066,1718812244756,-500.0,0.00013698,2]
[329904067,1718812244765,-500.0,0.00013698,2]
[329904068,1718812244775,-500.0,0.00013698,2]
[329904069,1718812244784,-500.0,0.00013698,2]
[329904070,1718812244793,-500.0,0.00013698,2]
[329904071,1718812244803,-681.57,0.00013698,2]
[329904072,1718812244812,-500.0,0.00013698,2]
[329904073,1718812244822,-500.0,0.00013698,2]
[329904074,1718812244831,-560.32,0.00013698,2]
[329904075,1718812244840,-632.47,0.00013698,2]
[329904076,1718812244850,-722.31,0.00013698,2]
[329904077,1718812244859,-500.0,0.00013698,2]
[329904078,1718812244869,-500.0,0.00013698,2]
[329904079,1718812244878,-638.4,0.00013698,2]
[329904080,1718812244887,-522.29,0.00013698,2]
[329904081,1718812244896,-583.95,0.00013698,2]
[329904082,1718812244905,-655.38,0.00013698,2]
[329904083,1718812244915,-500.0,0.00013698,2]
[329904084,1718812244925,-500.0,0.00013698,2]
[329904085,1718812244934,-615.08,0.00013698,2]
[329904086,1718812244945,-510.12,0.00013698,2]
[329904087,1718812244957,-500.0,0.00013698,2]
[329904088,1718812244967,-500.0,0.00013698,2]
[329904089,1718812244977,-500.0,0.00013698,2]
[329904090,1718812244986,-623.79,0.00013698,2]
[329904091,1718812244997,-500.0,0.00013698,2]
[329904092,1718812245006,-500.0,0.00013698,2]
[329904093,1718812245016,-500.0,0.00013698,2]
[329904094,1718812245026,-831.15,0.00013698,2]
[329904095,1718812245038,-500.0,0.00013698,2]
[329904096,1718812245050,-559.84,0.00013698,2]
[329904097,1718812245060,-500.0,0.00013698,2]
[329904098,1718812245069,-500.0,0.00013698,2]
[329904099,1718812245079,-500.0,0.00013698,2]
[329904100,1718812245088,-500.0,0.00013698,2]
[329904101,1718812245097,-500.0,0.00013698,2]
[329904102,1718812245106,-500.0,0.00013698,2]
[329904103,1718812245116,-500.0,0.00013698,2]
[329904104,1718812245125,-679.09,0.00013698,2]
[329904105,1718812245134,-500.0,0.00013698,2]
[329904106,1718812245144,-500.0,0.00013698,2]
[329904107,1718812245154,-651.93,0.00013698,2]
[329904108,1718812245165,-500.0,0.00013698,2]
[329904109,1718812245176,-500.0,0.00013698,2]
[329904110,1718812245186,-500.0,0.00013698,2]
[329904111,1718812245197,-500.0,0.00013698,2]
[329904112,1718812245207,-500.0,0.00013698,2]
[329904113,1718812245218,-500.0,0.00013698,2]
[329904114,1718812245229,-889.91,0.00013698,2]
[329904115,1718812245240,-543.76,0.00013698,2]
[329904116,1718812245251,-500.0,0.00013698,2]
[329904117,1718812245262,-500.0,0.00013698,2]
[329904118,1718812245273,-840.68,0.00013698,2]
[329904119,1718812245282,-500.0,0.00013698,2]
[329904120,1718812245294,-500.0,0.00013698,2]
[329904121,1718812245303,-829.48,0.00013698,2]
[329904122,1718812245314,-500.0,0.00013698,2]
[329904123,1718812245324,-500.0,0.00013698,2]
[329904124,1718812245334,-500.0,0.00013698,2]
[329904125,1718812245342,-296.20867588,0.00013698,2]
[329904126,1718812245351,-588.65,0.00013698,2]
[329904127,1718812245360,-500.0,0.00013698,2]
[329904128,1718812245371,-500.0,0.00013698,2]
[329904129,1718812245380,-561.33,0.00013698,2]
[329904130,1718812245390,-500.0,0.00013698,2]
[329904131,1718812245400,-548.52,0.00013698,2]
[329904132,1718812245410,-500.0,0.00013698,2]
[329904133,1718812245420,-500.0,0.00013698,2]
[329904134,1718812245431,-500.0,0.00013698,2]
[329904135,1718812245441,-500.0,0.00013698,2]
[329904136,1718812245451,-786.08,0.00013698,2]
[329904137,1718812245462,-500.0,0.00013698,2]
[329904138,1718812245472,-500.0,0.00013698,2]
[329904139,1718812245482,-912.48,0.00013698,2]
[329904140,1718812245491,-500.0,0.00013698,2]
[329904141,1718812245501,-501.6345419,0.00013698,2]
[329904142,1718812245511,-964.22,0.00013698,2]
[329904143,1718812245521,-500.0,0.00013698,2]
[329904144,1718812245530,-500.0,0.00013698,2]
[329904145,1718812245540,-500.0,0.00013698,2]
[329904146,1718812245552,-350.49359749,0.00013698,2]
[329904147,1718812245561,-656.09,0.00013698,2]
[329904148,1718812245572,-500.0,0.00013698,2]
[329904149,1718812245582,-500.0,0.00013698,2]
[329904150,1718812245592,-500.0,0.00013698,2]
[329904151,1718812245602,-784.68,0.00013698,2]
[329904152,1718812245613,-500.0,0.00013698,2]
[329904153,1718812245623,-500.0,0.00013698,2]
[329904154,1718812245632,-500.0,0.00013698,2]
[329904155,1718812245642,-500.0,0.00013698,2]
[329904156,1718812245652,-500.0,0.00013698,2]
[329904157,1718812245661,-500.0,0.00013698,2]
[329904158,1718812245670,-500.0,0.00013698,2]
[329904159,1718812245679,-871.71,0.00013698,2]
[329904160,1718812245688,-500.0,0.00013698,2]
[329904161,1718812245697,-500.0,0.00013698,2]
[329904162,1718812245707,-151.0,0.00013698,2]
[329904163,1718812245716,-151.0,0.00013698,2]
[329904164,1718812245725,-1015.87,0.00013698,2]
[329904165,1718812245735,-500.0,0.00013698,2]
[329904166,1718812245744,-517.98,0.00013698,2]
[329904167,1718812245754,-500.0,0.00013698,2]
[329904168,1718812245763,-347.331741,0.00013698,2]
[329904170,1718812246427,-453.188259,0.00013698,2]
[329904171,1718812246440,-500.0,0.00013698,2]
[329904172,1718812246454,-932.33,0.00013698,2]
[329904173,1718812246467,-500.0,0.00013698,2]
[329904174,1718812246480,-1169.66,0.00013698,2]
[329904175,1718812246493,-688.81,0.00013698,2]
[329904176,1718812246508,-500.0,0.00013698,2]
[329904177,1718812246522,-1123.99,0.00013698,2]
[329904178,1718812246536,-723.38,0.00013698,2]
[329904179,1718812246549,-500.0,0.00013698,2]
[329904180,1718812246561,-1028.11,0.00013698,2]
[329904181,1718812246573,-500.0,0.00013698,2]
[329904182,1718812246585,-500.0,0.00013698,2]
[329904183,1718812246598,-641.28,0.00013698,2]
[329904184,1718812246612,-799.23,0.00013698,2]
[329904185,1718812246623,-500.0,0.00013698,2]
[329904186,1718812246637,-1052.5,0.00013698,2]
[329904187,1718812246648,-500.0,0.00013698,2]
[329904188,1718812246660,-1454.6,0.00013698,2]
[329904189,1718812246671,-1588.17,0.00013698,2]
[329904190,1718812246683,-1311.95,0.00013698,2]
[329904191,1718812246694,-1106.35,0.00013698,2]
[329904192,1718812246707,-913.76,0.00013698,2]
[329904193,1718812246720,-265.47307221,0.00013698,2]
[329904194,1718812246732,-500.0,0.00013698,2]
[329904195,1718812246744,-596.98,0.00013698,2]
[329904196,1718812246758,-681.88,0.00013698,2]
[329904197,1718812246771,-500.0,0.00013698,2]
[329904198,1718812246784,-651.33,0.00013698,2]
[329904199,1718812246796,-687.08,0.00013698,2]
[329904200,1718812246806,-526.17,0.00013698,2]
[329904201,1718812246817,-811.72,0.00013698,2]
[329904202,1718812246828,-1274.72,0.00013698,2]
[329904203,1718812246840,-500.0,0.00013698,2]
[329904204,1718812246853,-749.33,0.00013698,2]
[329904205,1718812246865,-500.0,0.00013698,2]
[329904206,1718812246878,-500.0,0.00013698,2]
[329904207,1718812246888,-1272.92,0.00013698,2]
[329904208,1718812246899,-849.87,0.00013698,2]
[329904209,1718812246910,-500.0,0.00013698,2]
[329904210,1718812246921,-500.0,0.00013698,2]
[329904211,1718812246934,-736.29,0.00013698,2]
[329904212,1718812246946,-500.0,0.00013698,2]
[329904213,1718812246961,-601.57,0.00013698,2]
[329904214,1718812246973,-1269.18,0.00013698,2]
[329904215,1718812246985,-673.5,0.00013698,2]
[329904216,1718812246996,-1392.23,0.00013698,2]
[329904217,1718812247007,-500.0,0.00013698,2]
[329904218,1718812247024,-500.0,0.00013698,2]
[329904219,1718812247038,-500.0,0.00013698,2]
[329904220,1718812247049,-500.0,0.00013698,2]
[329904221,1718812247059,-505.41,0.00013698,2]
[329904222,1718812247070,-1547.33,0.00013698,2]
[329904223,1718812247081,-1238.03,0.00013698,2]
[329904224,1718812247092,-670.4,0.00013698,2]
[329904225,1718812247103,-500.0,0.00013698,2]
[329904226,1718812247114,-500.0,0.00013698,2]
[329904227,1718812247125,-1241.49,0.00013698,2]
[329904228,1718812247136,-181.39301456,0.00013698,2]
[329904229,1718812247147,-644.57,0.00013698,2]
[329904230,1718812247158,-500.0,0.00013698,2]
[329904231,1718812247169,-1082.72,0.00013698,2]
[329904232,1718812247180,-1129.46,0.00013698,2]
[329904233,1718812247192,-500.0,0.00013698,2]
[329904234,1718812247203,-500.0,0.00013698,2]
[329904235,1718812247215,-1228.1,0.00013698,2]
[329904236,1718812247225,-685.86,0.00013698,2]
[329904237,1718812247236,-500.0,0.00013698,2]
[329904238,1718812247248,-500.0,0.00013698,2]
[329904239,1718812247259,-500.0,0.00013698,2]
[329904240,1718812247270,-500.0,0.00013698,2]
[329904241,1718812247281,-500.0,0.00013698,2]
[329904242,1718812247292,-500.0,0.00013698,2]
[329904243,1718812247303,-794.6,0.00013698,2]
[329904244,1718812247314,-523.55,0.00013698,2]
[329904245,1718812247326,-899.54,0.00013698,2]
[329904246,1718812247337,-500.0,0.00013698,2]
[329904247,1718812247348,-500.0,0.00013698,2]
[329904248,1718812247359,-614.21,0.00013698,2]
[329904249,1718812247370,-727.21,0.00013698,2]
[329904250,1718812247381,-500.0,0.00013698,2]
[329904251,1718812247392,-500.0,0.00013698,2]
[329904252,1718812247402,-500.0,0.00013698,2]
[329904253,1718812247414,-1632.71,0.00013698,2]
[329904254,1718812247424,-520.29,0.00013698,2]
[329904255,1718812247436,-500.0,0.00013698,2]
[329904256,1718812247446,-546.95,0.00013698,2]
[329904257,1718812247456,-519.79,0.00013698,2]
[329904258,1718812247467,-1364.01,0.00013698,2]
[329904259,1718812247478,-608.71,0.00013698,2]
[329904260,1718812247489,-1250.36,0.00013698,2]
[329904261,1718812247500,-1119.35,0.00013698,2]
[329904262,1718812247512,-568.05,0.00013698,2]
[329904263,1718812247522,-1437.52,0.00013698,2]
[329904264,1718812247534,-639.61,0.00013698,2]
[329904265,1718812247546,-849.12,0.00013698,2]
[329904266,1718812247557,-1053.66,0.00013698,2]
[329904267,1718812247568,-1652.53,0.00013698,2]
[329904268,1718812247579,-500.0,0.00013698,2]
[329904269,1718812247591,-1200.3,0.00013698,2]
[329904270,1718812247602,-500.0,0.00013698,2]
[329904271,1718812247613,-781.08,0.00013698,2]
[329904272,1718812247623,-831.65,0.00013698,2]
[329904273,1718812247634,-1811.16,0.00013698,2]
[329904274,1718812247644,-500.0,0.00013698,2]
[329904275,1718812247655,-500.0,0.00013698,2]
[329904276,1718812247666,-500.0,0.00013698,2]
[329904277,1718812247677,-500.0,0.00013698,2]
[329904278,1718812247688,-1062.49,0.00013698,2]
[329904279,1718812247700,-500.0,0.00013698,2]
[329904280,1718812247711,-2903.66,0.00013698,2]
[329904281,1718812247722,-1310.61,0.00013698,2]
[329904282,1718812247733,-500.0,0.00013698,2]
[329904283,1718812247744,-890.9,0.00013698,2]
[329904284,1718812247756,-1310.84,0.00013698,2]
[329904285,1718812247767,-998.77,0.00013698,2]
[329904286,1718812247778,-500.0,0.00013698,2]
[329904287,1718812247789,-500.0,0.00013698,2]
[329904288,1718812247802,-500.0,0.00013698,2]
[329904289,1718812247814,-500.0,0.00013698,2]
[329904290,1718812247825,-151.0,0.00013698,2]
[329904291,1718812247836,-151.0,0.00013698,2]
[329904292,1718812247848,-843.79,0.00013698,2]
[329904293,1718812247859,-151.0,0.00013698,2]
[329904294,1718812247870,-151.0,0.00013698,2]
[329904295,1718812247882,-151.0,0.00013698,2]
[329904296,1718812247893,-500.0,0.00013698,2]
[329904297,1718812247904,-151.0,0.00013698,2]
[329904298,1718812247915,-151.0,0.00013698,2]
[329904299,1718812247928,-1265.79,0.00013698,2]
[329904300,1718812247941,-500.0,0.00013698,2]
[329904301,1718812247956,-871.0,0.00013698,2]
[329904302,1718812247970,-662.67,0.00013698,2]
[329904303,1718812247981,-578.24,0.00013698,2]
[329904304,1718812247992,-1548.26,0.00013698,2]
[329904305,1718812248005,-1042.64,0.00013698,2]
[329904306,1718812248016,-500.0,0.00013698,2]
[329904307,1718812248028,-500.0,0.00013698,2]
[329904308,1718812248039,-842.96,0.00013698,2]
[329904309,1718812248051,-500.0,0.00013698,2]
[329904310,1718812248062,-364.87756042,0.00013698,2]
[329904311,1718812248073,-500.0,0.00013698,2]
[329904312,1718812248084,-698.33,0.00013698,2]
[329904313,1718812248095,-1168.18,0.00013698,2]
[329904314,1718812248106,-834.98,0.00013698,2]
[329904315,1718812248117,-835.41,0.00013698,2]
[329904316,1718812248127,-500.0,0.00013698,2]
[329904317,1718812248139,-500.0,0.00013698,2]
[329904318,1718812248150,-725.02,0.00013698,2]
[329904319,1718812248161,-1364.17,0.00013698,2]
[329904320,1718812248172,-500.0,0.00013698,2]
[329904321,1718812248183,-500.0,0.00013698,2]
[329904322,1718812248194,-500.0,0.00013698,2]
[329904323,1718812248204,-500.0,0.00013698,2]
[329904324,1718812248216,-525.3,0.00013698,2]
[329904325,1718812248226,-709.45,0.00013698,2]
[329904326,1718812248237,-500.0,0.00013698,2]
[329904327,1718812248247,-679.01,0.00013698,2]
[329904328,1718812248258,-672.11,0.00013698,2]
[329904329,1718812248269,-765.11,0.00013698,2]
[329904330,1718812248280,-500.0,0.00013698,2]
[329904331,1718812248291,-833.98,0.00013698,2]
[329904332,1718812248304,-920.15,0.00013698,2]
[329904333,1718812248314,-500.0,0.00013698,2]
[329904334,1718812248325,-500.0,0.00013698,2]
[329904335,1718812248336,-1332.33,0.00013698,2]
[329904336,1718812248347,-500.0,0.00013698,2]
[329904337,1718812248357,-1349.54,0.00013698,2]
[329904338,1718812248368,-965.0,0.00013698,2]
[329904339,1718812248379,-1150.08,0.00013698,2]
[329904340,1718812248390,-500.0,0.00013698,2]
[329904341,1718812248401,-529.93,0.00013698,2]
[329904342,1718812248412,-1145.81,0.00013698,2]
[329904343,1718812248424,-500.0,0.00013698,2]
[329904344,1718812248435,-500.0,0.00013698,2]
[329904345,1718812248446,-500.0,0.00013698,2]
[329904346,1718812248456,-659.68,0.00013698,2]
[329904347,1718812248467,-500.0,0.00013698,2]
[329904348,1718812248478,-1143.77,0.00013698,2]
[329904349,1718812248490,-1044.67,0.00013698,2]
[329904350,1718812248501,-500.0,0.00013698,2]
[329904351,1718812248512,-500.0,0.00013698,2]
[329904352,1718812248523,-1151.37,0.00013698,2]
[329904353,1718812248534,-3016.07495,0.00013698,2]
[329904354,1718812248547,-500.0,0.00013698,2]
[329904355,1718812248559,-317.7986197,0.00013698,2]
[329904356,1718812248569,-1427.65,0.00013698,2]
[329904357,1718812248580,-500.0,0.00013698,2]
[329904358,1718812248591,-1524.88,0.00013698,2]
[329904359,1718812248602,-151.0,0.00013698,2]
[329904360,1718812248612,-1781.12,0.00013698,2]
[329904361,1718812248624,-151.0,0.00013698,2]
[329904362,1718812248634,-373.40867852,0.00013698,2]
[329904363,1718812248645,-500.0,0.00013698,2]
[329904364,1718812248655,-151.0,0.00013698,2]
[329904365,1718812248666,-469.06785255,0.00013698,2]
[329904366,1718812250286,-30.93214745,0.00013698,2]
[329904367,1718812250296,-212.773656,0.00013698,2]
[329904368,1718812250306,-510.81,0.00013698,2]
[329904369,1718812250315,-500.0,0.00013698,2]
[329904370,1718812250324,-671.48,0.00013698,2]
[329904371,1718812250333,-500.0,0.00013698,2]
[329904372,1718812250342,-1516.5,0.00013698,2]
[329904373,1718812250352,-500.0,0.00013698,2]
[329904374,1718812250361,-608.22,0.00013698,2]
[329904375,1718812250371,-1078.3,0.00013698,2]
[329904376,1718812250379,-500.0,0.00013698,2]
[329904377,1718812250388,-1573.85,0.00013698,2]
[329904378,1718812250398,-376.85735224,0.00013698,2]
[329904379,1718812250450,-467.94413014,0.00013698,2]
[329904380,1718812250494,-532.14539917,0.00013698,2]
[329904381,1718812295306,500.0,0.00025999,90]
[329904382,1718812319245,500.0,0.00025999,90]
[329904383,1718812338606,331.13735199,0.00025999,90]
[329904384,1718812344403,500.0,0.00025,60]
[329904385,1718812373909,500.0,0.00025,60]
[329904386,1718812374732,500.0,0.00025999,90]
[329904387,1718812383770,500.0,0.00025,60]
[329904388,1718812394131,500.0,0.00025,60]
[329904389,1718812402337,210.68405464,0.00025,60]
[329904390,1718812716282,654.4188936,0.000175,30]
[329904391,1718812913356,7000.0,0.00026,90]
[329904396,1718813309893,161.95,9.942e-05,2]
[329904397,1718813388984,348.35621855,9.942e-05,2]
[329904398,1718813404927,348.35621855,9.942e-05,2]
[329904402,1718813426912,428.09424491,9.942e-05,2]
[329904415,1718813432254,-263.47322908,0.00010757,2]
[329904416,1718813432266,-382.40677092,0.00010757,2]
[329904417,1718813432275,-160.4540119,0.00010859,2]
[329904418,1718813432286,-411.32,0.00010959,2]
[329904419,1718813432295,-250.0,0.00012484,2]
[329904420,1718813432305,-150.0,0.00012484,2]
[329904421,1718813432317,-300.0,0.00012484,2]
[329904422,1718813432326,-1873.91881384,0.00012485,2]
[329904423,1718813432339,-764.60626949,0.00012485,2]
[329904424,1718813432370,-3967.40597384,0.00012485,2]
[329904425,1718813432387,-359.63841064,0.00012485,2]
[329904426,1718813432551,-1431.28053219,0.00012485,2]
[329904427,1718813432561,-250.0,0.00012485,2]
[329904428,1718813432570,-1231.58,0.00012533,2]
[329904429,1718813432580,-200.0,0.00012748,2]
[329904431,1718813433001,-499.99,0.00012748,2]
[329904432,1718813433011,-169.75,0.00012778,2]
[329904433,1718813433021,-1000.0,0.00012815,2]
[329904434,1718813433031,-539.65,0.00012815,4]
[329904435,1718813433041,-217.08,0.00012904,3]
[329904436,1718813433050,-382.7323588,0.00012921,2]
[329904437,1718813433062,-491.19313394,0.00012921,2]
[329904438,1718813433071,-124.57738606,0.00012921,2]
[329904439,1718813433083,-1293.74945162,0.00012921,2]
[329904440,1718813433092,-386.69977949,0.00012921,2]
[329904441,1718813433101,-7133.67365307,0.00012921,2]
[329904442,1718813433202,-1728.0087192,0.00012921,2]
[329904443,1718813433256,-521.44331218,0.00012921,2]
[329904444,1718813433267,-5204.49561607,0.00012921,2]
[329904445,1718813433277,-1948.32588916,0.00013,2]
[329904456,1718813437620,-3186.29266696,0.00013,2]
[329904459,1718813437632,-250.45581864,0.00013,2]
[329904461,1718813437644,-866.40507594,0.00013,2]
[329904462,1718813437678,-442.25,0.00013,2]
[329904463,1718813437740,-800.0,0.00013,2]
[329904464,1718813437753,-1644.2883817,0.00013,2]
[329904465,1718813437855,-2295.68197363,0.00013,2]
[329904466,1718813437868,-1513.35868036,0.00013,2]
[329904467,1718813437915,-94178.37830526,0.00013,2]
[329904468,1718813437974,-14182.0,0.00013,2]
[329904469,1718813437987,-4712.18710168,0.00013,2]
[329904470,1718813438035,-75623.1231045,0.00013,2]
[329904471,1718813438047,-44630.71431273,0.00013,2]
[329904488,1718813440452,-46406.674974,0.00013,2]
[329904489,1718813440470,-778.64096614,0.00013,2]
[329904490,1718813440482,-26859.42744361,0.00013,2]
[329904491,1718813440520,-843.15773648,0.00013,2]
[329904492,1718813440531,-2883.21999999,0.00013,2]
[329904493,1718813440550,-41869.65761458,0.00013,2]
[329904494,1718813440562,-349.81867312,0.00013,2]
[329904495,1718813440600,-1906.93647508,0.00013,2]
[329904496,1718813440612,-358.515,0.00013,2]
[329904497,1718813440630,-10733.8579377,0.00013,2]
[329904498,1718813440642,-3250.0,0.00013,2]
[329904499,1718813440663,-1079.800005,0.00013,2]
[329904500,1718813440674,-1937.26644223,0.00013,2]
[329904501,1718813440687,-6001.19151036,0.00013,2]
[329904502,1718813440699,-303.27304,0.00013,2]
[329904503,1718813440729,-1641.30252,0.00013,2]
[329904504,1718813440740,-362.572002,0.00013,2]
[329904505,1718813440751,-3364.15,0.00013,2]
[329904506,1718813440763,-14365.96528816,0.00013,2]
[329904507,1718813440792,-322.85018007,0.00013,2]
[329904508,1718813440803,-3017.256,0.00013,2]
[329904509,1718813440815,-3380.424834,0.00013,2]
[329904512,1718813442635,-506.363244,0.00013,2]
[329904513,1718813442648,-1085.140985,0.00013,2]
[329904514,1718813442702,-58124.23334074,0.00013,2]
[329904515,1718813442713,-332.193848,0.00013,2]
[329904516,1718813442726,-517.03487054,0.00013,2]
[329904517,1718813442830,-326.5965327,0.00012921,2]
[329904518,1718813442840,-903.09506059,0.00013,2]
[329904519,1718813442852,-1134.31999994,0.00013,2]
[329904520,1718813442864,-912.45,0.00013,2]
[329904521,1718813442877,-8035.39495912,0.00013,2]
[329904522,1718813442889,-57322.14951469,0.00013,2]
[329904523,1718813442907,-31221.60189139,0.00013,2]
[329904524,1718813442919,-297.59077079,0.00013,2]
[329904525,1718813442952,-6732.88683091,0.00013,2]
[329904526,1718813442964,-2420.71374666,0.00013,2]
[329904527,1718813442975,-1365.5162,0.00013,2]
[329904535,1718813445785,-432.03868069,0.00012999,2]
[329904585,1718813446636,-541.19808586,0.00012999,2]
[329904587,1718813446647,-691.03903521,0.00012999,2]
[329904591,1718813446674,-453.46218221,0.00012999,2]
[329904593,1718813446685,-307.44854805,0.00012999,2]
[329904595,1718813446697,-959.76409466,0.00012999,2]
[329904606,1718813446788,-534.16021158,0.00012999,2]
[329904608,1718813446800,-581.71067117,0.00012999,2]
[329904610,1718813446812,-203.85233681,0.00012999,2]
[329904612,1718813446821,-1734.56039347,0.00013,2]
[329904614,1718813446833,-2401.02711241,0.00013,2]
[329904617,1718813446853,-923.64272275,0.00013,2]
[329904620,1718813446864,-3242.92302758,0.00013,2]
[329904622,1718813446875,-1753.85498398,0.00013,2]
[329904624,1718813446887,-1788.83831452,0.00013,2]
[329904626,1718813446899,-3649.03273119,0.00013,2]
[329904628,1718813446911,-31386.1352046,0.00013,2]
[329904631,1718813446925,-3308.66806079,0.00013,2]
[329904633,1718813446937,-5530.06801467,0.00013,2]
[329904635,1718813446950,-404.48230813,0.00013,2]
[329904638,1718813446968,-494.92633048,0.00013,2]
[329904642,1718813446987,-536.415,0.00013,2]
[329904644,1718813446998,-1284.1755862,0.00013,2]
[329904648,1718813447026,-544.91435594,0.00013,2]
[329904650,1718813447039,-485.64628292,0.00013,2]
[329904652,1718813447050,-760.9013701,0.00013,2]
[329905141,1718813520261,600.0,0.000254,120]
[329905143,1718813686736,312.36394188,0.0002599,90]
[329905144,1718813687086,700.0,0.000254,120]
[329905145,1718813715220,-300.0,0.00010809,2]
[329905146,1718813717339,646.72934013,0.00010808,2]
[329905148,1718813753518,1376.9,0.000254,120]
[329905149,1718813906799,161.95,9.361e-05,2]
[329905150,1718814043109,-532.33009176,0.00010809,2]
[329905151,1718814043130,-4622.10525761,0.0001081,2]
[329905152,1718814043152,-660.27,0.00010815,2]
[329905153,1718814043173,-629.88,0.00010959,2]
[329905154,1718814043193,-178.95,0.0001163,2]
[329905155,1718814043211,-250.0,0.0001163,2]
[329905156,1718814043230,-150.0,0.00011701,2]
[329905157,1718814043254,-360.0,0.00011789,2]
[329905158,1718814043273,-170.37,0.00011816,2]
[329905159,1718814043292,-250.0,0.00011865,2]
[329905160,1718814043313,-200.0,0.000121,4]
[329905161,1718814043333,-300.0,0.0001219,2]
[329905162,1718814043353,-1000.0,0.00012191,2]
[329905163,1718814043372,-981.86,0.00012191,2]
[329905164,1718814043391,-470.78,0.00012191,2]
[329905165,1718814043410,-299.99,0.00012191,2]
[329905166,1718814043431,-500.0,0.000122,4]
[329905167,1718814043453,-154.41,0.00012218,2]
[329905168,1718814043475,-1396.23,0.0001222,2]
[329905169,1718814043498,-700.0,0.000123,4]
[329905170,1718814043521,-154.41,0.00012346,2]
[329905171,1718814043542,-501.95976371,0.00012349,2]
[329905172,1718814043564,-1000.0,0.000124,4]
[329905173,1718814043589,-154.41,0.00012473,2]
[329905174,1718814043612,-1200.0,0.000125,4]
[329905175,1718814043635,-200.0,0.000126,4]
[329905176,1718814043659,-154.41,0.000126,2]
[329905177,1718814043682,-200.0,0.000127,4]
[329905178,1718814043703,-154.41,0.00012728,2]
[329905179,1718814043723,-200.0,0.000128,4]